fUSD/lending_fUSD_20250211
["ID","MTS","AMOUNT","RATE_DAILY","PERIOD"]
[352754145,1739292658547,-851.21,0.00016712,2]
[352754146,1739292658557,-404.05967646,0.00016712,2]
[352754147,1739292658568,-1722.06,0.00016712,2]
[352754148,1739292658577,-151.0,0.00016712,2]
[352754149,1739292658587,-151.0,0.00016712,2]
[352754150,1739292658596,-755.82,0.00016712,2]
[352754151,1739292658606,-500.0,0.00016712,2]
[352754152,1739292658616,-500.0,0.00016712,2]
[352754153,1739292658625,-500.0,0.00016712,2]
[352754154,1739292658635,-500.0,0.00016712,2]
[352754155,1739292658645,-1007.91,0.00016712,2]
[352754156,1739292658655,-1556.32,0.00016712,2]
[352754157,1739292658665,-743.69,0.00016712,2]
[352754158,1739292658675,-500.0,0.00016712,2]
[352754159,1739292658684,-787.8,0.00016712,2]
[352754160,1739292658694,-500.0,0.00016712,2]
[352754161,1739292658704,-775.23,0.00016712,2]
[352754162,1739292658714,-500.0,0.00016712,2]
[352754163,1739292658723,-151.0,0.00016712,2]
[352754164,1739292658866,-151.0,0.00016712,2]
[352754165,1739292658907,-3453.19,0.00016712,2]
[352754166,1739292658919,-1296.08,0.00016712,2]
[352754167,1739292658928,-500.0,0.00016712,2]
[352754168,1739292658938,-151.0,0.00016712,2]
[352754169,1739292658950,-151.0,0.00016712,2]
[352754170,1739292658960,-1077.77,0.00016712,2]
[352754171,1739292658970,-903.8,0.00016712,2]
[352754172,1739292658980,-1620.87,0.00016712,2]
[352754173,1739292658990,-500.0,0.00016712,2]
[352754174,1739292659000,-500.0,0.00016712,2]
[352754175,1739292659009,-1360.37,0.00016712,2]
[352754176,1739292659021,-871.16,0.00016712,2]
[352754177,1739292659032,-500.0,0.00016712,2]
[352754178,1739292659042,-270.9849685,0.00016712,2]
[352754179,1739292659053,-1044.51,0.00016712,2]
[352754180,1739292659063,-1745.206006,0.00016712,2]
[352754181,1739292659073,-1745.206006,0.00016712,2]
[352754182,1739292659084,-500.0,0.00016712,2]
[352754183,1739292659094,-1892.93,0.00016712,2]
[352754184,1739292659103,-1187.32,0.00016712,2]
[352754185,1739292659113,-500.0,0.00016712,2]
[352754186,1739292659123,-1128.96,0.00016712,2]
[352754187,1739292659132,-1745.206006,0.00016712,2]
[352754188,1739292659142,-1745.206006,0.00016712,2]
[352754189,1739292659153,-500.0,0.00016712,2]
[352754190,1739292659164,-664.21,0.00016712,2]
[352754191,1739292659173,-1085.95,0.00016712,2]
[352754192,1739292659183,-831.29,0.00016712,2]
[352754193,1739292659192,-1315.41,0.00016712,2]
[352754194,1739292659203,-500.0,0.00016712,2]
[352754195,1739292659213,-1449.55,0.00016712,2]
[352754196,1739292659223,-1736.09,0.00016712,2]
[352754197,1739292659234,-524.7,0.00016712,2]
[352754198,1739292659245,-792.28,0.00016712,2]
[352754199,1739292659257,-1153.98,0.00016712,2]
[352754200,1739292659267,-500.0,0.00016712,2]
[352754201,1739292659279,-500.0,0.00016712,2]
[352754202,1739292659289,-500.0,0.00016712,2]
[352754203,1739292659299,-1628.97,0.00016712,2]
[352754204,1739292659309,-1363.01,0.00016712,2]
[352754205,1739292659318,-2696.96,0.00016712,2]
[352754206,1739292659328,-500.0,0.00016712,2]
[352754207,1739292659338,-1143.92,0.00016712,2]
[352754208,1739292659348,-500.0,0.00016712,2]
[352754209,1739292659358,-628.01,0.00016712,2]
[352754210,1739292659368,-500.0,0.00016712,2]
[352754211,1739292659377,-1164.3,0.00016712,2]
[352754212,1739292659391,-500.0,0.00016712,2]
[352754213,1739292659401,-502.12,0.00016712,2]
[352754214,1739292659410,-1186.05,0.00016712,2]
[352754215,1739292659420,-1316.05,0.00016712,2]
[352754216,1739292659430,-500.0,0.00016712,2]
[352754217,1739292659439,-326.2201525,0.00016712,2]
[352754218,1739292659451,-507.5,0.00016712,2]
[352754219,1739292659461,-500.0,0.00016712,2]
[352754220,1739292659470,-1204.14,0.00016712,2]
[352754221,1739292659481,-500.0,0.00016712,2]
[352754222,1739292659490,-500.0,0.00016712,2]
[352754223,1739292659502,-2709.34,0.00016712,2]
[352754224,1739292659512,-468.95815804,0.00016712,2]
[352754225,1739292659521,-2432.62,0.00016712,2]
[352754226,1739292659531,-1383.14,0.00016712,2]
[352754227,1739292659541,-1113.99,0.00016712,2]
[352754228,1739292659551,-516.51,0.00016712,2]
[352754229,1739292659560,-770.35,0.00016712,2]
[352754230,1739292659572,-151.0,0.00016712,2]
[352754231,1739292659581,-151.0,0.00016712,2]
[352754232,1739292659592,-3406.84,0.00016712,2]
[352754233,1739292659602,-1152.94,0.00016712,2]
[352754234,1739292659612,-391.56546793,0.00016712,2]
[352754235,1739292659622,-1081.2,0.00016712,2]
[352754236,1739292659632,-694.27,0.00016712,2]
[352754237,1739292659642,-2107.97,0.00016712,2]
[352754238,1739292659652,-500.0,0.00016712,2]
[352754239,1739292659662,-1266.65,0.00016712,2]
[352754240,1739292659672,-500.0,0.00016712,2]
[352754241,1739292659682,-500.0,0.00016712,2]
[352754242,1739292659692,-517.54,0.00016712,2]
[352754243,1739292659701,-1409.01,0.00016712,2]
[352754244,1739292659710,-760.33,0.00016712,2]
[352754245,1739292659721,-151.0,0.00016712,2]
[352754246,1739292659730,-1622.42,0.00016712,2]
[352754247,1739292659742,-151.0,0.00016712,2]
[352754248,1739292659752,-908.49,0.00016712,2]
[352754249,1739292659761,-500.0,0.00016712,2]
[352754250,1739292659770,-500.0,0.00016712,2]
[352754251,1739292659779,-5500.0,0.00016712,2]
[352754252,1739292659789,-5500.0,0.00016712,2]
[352754253,1739292659801,-1394.87,0.00016712,2]
[352754254,1739292659812,-500.0,0.00016712,2]
[352754255,1739292659822,-1146.54,0.00016712,2]
[352754256,1739292659832,-2904.03,0.00016712,2]
[352754257,1739292659842,-5500.0,0.00016712,2]
[352754258,1739292659853,-5500.0,0.00016712,2]
[352754259,1739292659862,-881.37,0.00016712,2]
[352754260,1739292659876,-500.0,0.00016712,2]
[352754261,1739292659886,-581.55,0.00016712,2]
[352754262,1739292659896,-151.0,0.00016712,2]
[352754263,1739292659906,-151.0,0.00016712,2]
[352754264,1739292659917,-1246.46,0.00016712,2]
[352754265,1739292659927,-500.0,0.00016712,2]
[352754266,1739292659938,-963.63,0.00016712,2]
[352754267,1739292659949,-500.0,0.00016712,2]
[352754268,1739292659959,-500.0,0.00016712,2]
[352754269,1739292659969,-500.0,0.00016712,2]
[352754270,1739292659980,-500.0,0.00016712,2]
[352754271,1739292659991,-500.0,0.00016712,2]
[352754272,1739292660001,-1035.86,0.00016712,2]
[352754273,1739292660012,-1186.79,0.00016712,2]
[352754274,1739292660023,-1512.18,0.00016712,2]
[352754275,1739292660033,-718.14,0.00016712,2]
[352754276,1739292660044,-497.85986635,0.00016712,2]
[352754277,1739292660054,-500.0,0.00016712,2]
[352754278,1739292660064,-500.0,0.00016712,2]
[352754279,1739292660074,-151.0,0.00016712,2]
[352754280,1739292660084,-151.0,0.00016712,2]
[352754281,1739292660094,-1350.44,0.00016712,2]
[352754282,1739292660106,-500.0,0.00016712,2]
[352754283,1739292660116,-1320.12,0.00016712,2]
[352754284,1739292660126,-500.0,0.00016712,2]
[352754285,1739292660136,-668.38,0.00016712,2]
[352754286,1739292660145,-500.0,0.00016712,2]
[352754287,1739292660156,-500.0,0.00016712,2]
[352754288,1739292660166,-500.0,0.00016712,2]
[352754289,1739292660176,-862.44,0.00016712,2]
[352754290,1739292660185,-1589.93,0.00016712,2]
[352754291,1739292660196,-985.84,0.00016712,2]
[352754292,1739292660206,-1153.41,0.00016712,2]
[352754293,1739292660215,-1534.98,0.00016712,2]
[352754294,1739292660227,-500.0,0.00016712,2]
[352754295,1739292660236,-500.0,0.00016712,2]
[352754296,1739292660248,-1581.96,0.00016712,2]
[352754297,1739292660258,-1598.66,0.00016712,2]
[352754298,1739292660270,-486.59576334,0.00016712,2]
[352754299,1739292660280,-761.15,0.00016712,2]
[352754300,1739292660291,-500.0,0.00016712,2]
[352754301,1739292660301,-223.10832423,0.00016712,2]
[352754302,1739292660312,-1270.11,0.00016712,2]
[352754303,1739292660322,-737.13,0.00016712,2]
[352754304,1739292660334,-992.82,0.00016712,2]
[352754305,1739292660344,-500.0,0.00016712,2]
[352754306,1739292660355,-536.015013,0.00016712,2]
[352754307,1739292660365,-1121.5,0.00016712,2]
[352754308,1739292660375,-536.015013,0.00016712,2]
[352754309,1739292660385,-558.08438457,0.00016712,2]
[352754310,1739292660395,-824.99,0.00016712,2]
[352754311,1739292660405,-500.0,0.00016712,2]
[352754312,1739292660414,-1979.99,0.00016712,2]
[352754313,1739292660425,-500.0,0.00016712,2]
[352754314,1739292660434,-536.015013,0.00016712,2]
[352754315,1739292660444,-1201.69,0.00016712,2]
[352754316,1739292660453,-536.015013,0.00016712,2]
[352754317,1739292660463,-411.44,0.00016712,2]
[352754318,1739292660473,-500.0,0.00016712,2]
[352754319,1739292660483,-500.0,0.00016712,2]
[352754320,1739292660494,-635.61,0.00016712,2]
[352754321,1739292660508,-812.69,0.00016712,2]
[352754322,1739292660518,-500.0,0.00016712,2]
[352754323,1739292660528,-500.0,0.00016712,2]
[352754324,1739292660538,-1168.66,0.00016712,2]
[352754325,1739292660548,-1000.0,0.00016712,2]
[352754326,1739292660557,-2251.11,0.00016712,2]
[352754327,1739292660567,-635.05,0.00016712,2]
[352754328,1739292660577,-1373.72,0.00016713,2]
[352754329,1739292660587,-723.29023206,0.00016749,2]
[352754330,1739292660597,-617.67,0.00016785,2]
[352754331,1739292660607,-671.45,0.00016785,2]
[352754332,1739292660618,-929.9,0.00016785,2]
[352754333,1739292660628,-8000.0,0.00016789,5]
[352754334,1739292660637,-1636.71338,0.00016789,2]
[352754335,1739292660647,-151.0,0.00016799,2]
[352754336,1739292660656,-151.0,0.00016799,2]
[352754337,1739292660666,-151.0,0.00016799,2]
[352754338,1739292660675,-152.411138,0.00016799,2]
[352754339,1739292660684,-151.0,0.00016799,2]
[352754340,1739292660694,-152.411138,0.00016799,2]
[352754341,1739292660704,-151.0,0.00016799,2]
[352754342,1739292660714,-500.0,0.00016799,2]
[352754343,1739292660723,-5405.53640818,0.000168,2]
[352754344,1739292660733,-861.66,0.000168,7]
[352754345,1739292660742,-274.66804101,0.000168,2]
[352754346,1739292660754,-10395.55057906,0.000168,2]
[352754347,1739292660764,-240.312746,0.000168,2]
[352754348,1739292660773,-312.345054,0.000168,2]
[352754349,1739292660782,-312.345054,0.000168,2]
[352754350,1739292660792,-151.0,0.000168,2]
[352754351,1739292660801,-151.0,0.000168,2]
[352754352,1739292660811,-151.0,0.000168,2]
[352754353,1739292660821,-151.0,0.000168,2]
[352754354,1739292660830,-151.0,0.000168,2]
[352754355,1739292660839,-151.0,0.000168,2]
[352754356,1739292660849,-151.0,0.000168,2]
[352754357,1739292660858,-7400.0,0.000168,6]
[352754358,1739292660870,-723.29023206,0.000168,2]
[352754359,1739292660881,-540.4323348,0.000168,2]
[352754360,1739292660890,-320.59908384,0.000168,2]
[352754361,1739292660899,-371.01006813,0.000168,2]
[352754362,1739292660910,-433.0,0.00016808,2]
[352754363,1739292660920,-429.32,0.00016813,2]
[352754364,1739292660929,-176.01,0.00016813,2]
[352754365,1739292660938,-1312.0,0.00016822,2]
[352754366,1739292660949,-4187.65343509,0.00016843,2]
[352754367,1739292660959,-411.33715,0.00016847,2]
[352754368,1739292660968,-411.33715,0.00016847,2]
[352754369,1739292660978,-151.0,0.00016847,2]
[352754370,1739292660987,-151.0,0.00016847,2]
[352754371,1739292660998,-164.127336,0.00016847,2]
[352754372,1739292661008,-164.127336,0.00016847,2]
[352754373,1739292661018,-949.451014,0.00016847,2]
[352754374,1739292661027,-949.451014,0.00016847,2]
[352754375,1739292661038,-337.254953,0.00016847,2]
[352754376,1739292661047,-337.254953,0.00016847,2]
[352754377,1739292661056,-237.042097,0.00016847,2]
[352754378,1739292661066,-237.042097,0.00016847,2]
[352754379,1739292661075,-154.63569013,0.00016848,2]
[352754380,1739292661085,-151.444742,0.00016848,2]
[352754381,1739292661094,-500.0,0.00016848,2]
[352754382,1739292661104,-529.26724699,0.00016848,2]
[352754383,1739292661114,-301.96461048,0.00016848,3]
[352754384,1739292661123,-1074383.28035718,0.00016849,3]
[352754385,1739292661132,-151.0,0.00016849,2]
[352754386,1739292661142,-151.0,0.00016849,2]
[352754387,1739292661151,-151.0,0.00016849,2]
[352754388,1739292661161,-151.0,0.00016849,2]
[352754389,1739292661170,-151.0,0.00016849,2]
[352754390,1739292661179,-1043.727911,0.00016849,2]
[352754391,1739292661189,-152.411138,0.00016849,2]
[352754392,1739292661198,-151.0,0.00016849,2]
[352754393,1739292661207,-152.411138,0.00016849,2]
[352754394,1739292661217,-151.0,0.00016849,2]
[352754395,1739292661226,-1232.861141,0.00016849,2]
[352754396,1739292661236,-500.0,0.00016849,2]
[352754397,1739292661245,-500.0,0.00016849,2]
[352754398,1739292661257,-227.414,0.00016849,2]
[352754399,1739292661268,-500.0,0.00016849,2]
[352754400,1739292661278,-227.414,0.00016849,2]
[352754401,1739292661288,-227.414,0.00016849,2]
[352754402,1739292661299,-227.414,0.00016849,2]
[352754403,1739292661309,-151.0,0.00016849,2]
[352754404,1739292661319,-736.26235992,0.00016849,2]
[352754405,1739292661329,-154.55697136,0.00016849,2]
[352754406,1739292661339,-500.0,0.00016849,2]
[352754407,1739292661349,-500.0,0.00016849,2]
[352754408,1739292661359,-151.0,0.00016849,2]
[352754409,1739292661369,-151.0,0.00016849,2]
[352754410,1739292661379,-285.504524,0.00016849,2]
[352754411,1739292661388,-151.0,0.00016849,2]
[352754412,1739292661398,-151.0,0.00016849,2]
[352754413,1739292661407,-151.0,0.00016849,2]
[352754414,1739292661466,-500.0,0.00016849,2]
[352754415,1739292661476,-500.0,0.00016849,2]
[352754416,1739292661486,-151.0,0.00016849,2]
[352754417,1739292661496,-151.0,0.00016849,2]
[352754418,1739292661507,-500.0,0.00016849,2]
[352754419,1739292661517,-658.54,0.00016849,2]
[352754420,1739292661527,-500.0,0.00016849,2]
[352754421,1739292661537,-238.865244,0.00016849,2]
[352754422,1739292661546,-238.865244,0.00016849,2]
[352754423,1739292661556,-611.65,0.00016849,2]
[352754424,1739292661565,-500.0,0.00016849,2]
[352754425,1739292661574,-238.865244,0.00016849,2]
[352754426,1739292661583,-238.865244,0.00016849,2]
[352754427,1739292661592,-500.0,0.00016849,2]
[352754428,1739292661601,-559.27283352,0.00016849,2]
[352754429,1739292661611,-154.42,0.00016849,2]
[352754430,1739292661620,-500.0,0.00016849,2]
[352754431,1739292661629,-1636.71338,0.00016849,2]
[352754432,1739292661639,-500.0,0.00016849,2]
[352754433,1739292661648,-504.85962021,0.00016849,2]
[352754434,1739292661658,-500.0,0.00016849,2]
[352754435,1739292661667,-500.0,0.00016849,2]
[352754436,1739292661678,-500.0,0.00016849,2]
[352754437,1739292661687,-500.0,0.00016849,2]
[352754438,1739292661698,-500.0,0.00016849,2]
[352754439,1739292661707,-500.0,0.00016849,2]
[352754440,1739292661717,-500.0,0.00016849,2]
[352754441,1739292661727,-696.012988,0.00016849,2]
[352754442,1739292661736,-696.012988,0.00016849,2]
[352754443,1739292661746,-500.0,0.00016849,2]
[352754444,1739292661757,-696.012988,0.00016849,2]
[352754445,1739292661767,-696.012988,0.00016849,2]
[352754446,1739292661777,-237.406569,0.00016849,2]
[352754447,1739292661786,-237.406569,0.00016849,2]
[352754448,1739292661796,-500.0,0.00016849,2]
[352754449,1739292661805,-237.406569,0.00016849,2]
[352754450,1739292661815,-237.406569,0.00016849,2]
[352754451,1739292661825,-500.0,0.00016849,2]
[352754452,1739292661835,-151.0,0.00016849,2]
[352754453,1739292661844,-151.0,0.00016849,2]
[352754454,1739292661853,-500.0,0.00016849,2]
[352754455,1739292661862,-500.0,0.00016849,2]
[352754456,1739292661876,-708.99,0.00016849,2]
[352754457,1739292661886,-500.0,0.00016849,2]
[352754458,1739292661896,-643.48,0.00016849,2]
[352754459,1739292661906,-151.0,0.00016849,2]
[352754460,1739292661915,-500.0,0.00016849,2]
[352754461,1739292661925,-151.0,0.00016849,2]
[352754462,1739292661935,-500.0,0.00016849,2]
[352754463,1739292661945,-151.0,0.00016849,2]
[352754464,1739292661954,-151.0,0.00016849,2]
[352754465,1739292661963,-205.034674,0.00016849,2]
[352754466,1739292661972,-205.034674,0.00016849,2]
[352754467,1739292661981,-205.034674,0.00016849,2]
[352754468,1739292661990,-205.034674,0.00016849,2]
[352754469,1739292662000,-228.811866,0.00016849,2]
[352754470,1739292662009,-228.811866,0.00016849,2]
[352754471,1739292662023,-228.811866,0.00016849,2]
[352754472,1739292662039,-228.811866,0.00016849,2]
[352754473,1739292662048,-151.0,0.00016849,2]
[352754474,1739292662057,-151.0,0.00016849,2]
[352754475,1739292662066,-151.0,0.00016849,2]
[352754476,1739292662076,-151.0,0.00016849,2]
[352754477,1739292662085,-500.0,0.00016849,2]
[352754478,1739292662094,-151.0,0.00016849,2]
[352754479,1739292662104,-151.0,0.00016849,2]
[352754480,1739292662112,-500.0,0.00016849,2]
[352754481,1739292662121,-620.8,0.00016849,2]
[352754482,1739292662130,-500.0,0.00016849,2]
[352754483,1739292662139,-500.0,0.00016849,2]
[352754484,1739292662148,-500.0,0.00016849,2]
[352754485,1739292662158,-616.82,0.00016849,2]
[352754486,1739292662168,-533.34,0.00016849,2]
[352754487,1739292662178,-500.0,0.00016849,2]
[352754488,1739292662188,-512.37,0.00016849,2]
[352754489,1739292662202,-162.045334,0.00016849,2]
[352754490,1739292662212,-162.045334,0.00016849,2]
[352754491,1739292662221,-500.0,0.00016849,2]
[352754492,1739292662232,-162.045334,0.00016849,2]
[352754493,1739292662241,-162.045334,0.00016849,2]
[352754494,1739292662252,-408.31536751,0.00016849,2]
[352754495,1739292662263,-500.0,0.00016849,2]
[352754496,1739292662272,-626.01,0.00016849,2]
[352754497,1739292662282,-500.0,0.00016849,2]
[352754498,1739292662292,-593.14,0.00016849,2]
[352754499,1739292662304,-500.0,0.00016849,2]
[352754500,1739292662313,-681.21,0.00016849,2]
[352754501,1739292662322,-500.0,0.00016849,2]
[352754502,1739292662332,-264.11702223,0.00016849,2]
[352754503,1739292662341,-500.0,0.00016849,2]
[352754504,1739292662351,-500.0,0.00016849,2]
[352754505,1739292662360,-565.98,0.00016849,2]
[352754506,1739292662370,-500.0,0.00016849,2]
[352754507,1739292662380,-610.07,0.00016849,2]
[352754508,1739292662389,-500.0,0.00016849,2]
[352754509,1739292662399,-500.0,0.00016849,2]
[352754510,1739292662408,-291.02,0.00016849,2]
[352754511,1739292662418,-500.0,0.00016849,2]
[352754512,1739292662427,-653.33,0.00016849,2]
[352754513,1739292662436,-500.0,0.00016849,2]
[352754514,1739292662446,-411.33715,0.00016849,2]
[352754515,1739292662455,-500.0,0.00016849,2]
[352754516,1739292662464,-500.0,0.00016849,2]
[352754517,1739292662474,-500.0,0.00016849,2]
[352754518,1739292662483,-411.33715,0.00016849,2]
[352754519,1739292662493,-500.0,0.00016849,2]
[352754520,1739292662503,-575.35,0.00016849,2]
[352754521,1739292662512,-543.76,0.00016849,2]
[352754522,1739292662522,-500.0,0.00016849,2]
[352754523,1739292662531,-560.98,0.00016849,2]
[352754524,1739292662540,-500.0,0.00016849,2]
[352754525,1739292662550,-500.0,0.00016849,2]
[352754526,1739292662559,-500.0,0.00016849,2]
[352754527,1739292662568,-500.0,0.00016849,2]
[352754528,1739292662578,-500.0,0.00016849,2]
[352754529,1739292662587,-504.72,0.00016849,2]
[352754530,1739292662596,-500.0,0.00016849,2]
[352754531,1739292662606,-500.0,0.00016849,2]
[352754532,1739292662615,-721.21,0.00016849,2]
[352754533,1739292662624,-500.0,0.00016849,2]
[352754534,1739292662633,-500.0,0.00016849,2]
[352754535,1739292662643,-519.10578552,0.00016849,2]
[352754536,1739292662653,-500.0,0.00016849,2]
[352754537,1739292662662,-500.0,0.00016849,2]
[352754538,1739292662672,-312.345054,0.00016849,2]
[352754539,1739292662681,-500.0,0.00016849,2]
[352754540,1739292662690,-151.0,0.00016849,2]
[352754541,1739292662700,-500.0,0.00016849,2]
[352754542,1739292662709,-312.345054,0.00016849,2]
[352754543,1739292662718,-151.0,0.00016849,2]
[352754544,1739292662727,-686.28,0.00016849,2]
[352754545,1739292662736,-223.342638,0.00016849,2]
[352754546,1739292662746,-151.0,0.00016849,2]
[352754547,1739292662756,-500.0,0.00016849,2]
[352754548,1739292662766,-500.0,0.00016849,2]
[352754549,1739292662776,-628.87,0.00016849,2]
[352754550,1739292662786,-500.0,0.00016849,2]
[352754551,1739292662795,-500.0,0.00016849,2]
[352754552,1739292662805,-500.0,0.00016849,2]
[352754553,1739292662815,-656.08,0.00016849,2]
[352754554,1739292662824,-500.0,0.00016849,2]
[352754555,1739292662833,-500.0,0.00016849,2]
[352754556,1739292662843,-973.03,0.00016849,2]
[352754557,1739292662852,-769.16,0.00016849,2]
[352754558,1739292662863,-500.0,0.00016849,2]
[352754559,1739292662878,-500.0,0.00016849,2]
[352754560,1739292662897,-500.0,0.00016849,2]
[352754561,1739292662909,-151.0,0.00016849,2]
[352754562,1739292662919,-500.0,0.00016849,2]
[352754563,1739292662929,-500.0,0.00016849,2]
[352754564,1739292662938,-2633.29,0.00016849,2]
[352754565,1739292662947,-500.0,0.00016849,2]
[352754566,1739292662956,-608.46,0.00016849,2]
[352754567,1739292662965,-500.0,0.00016849,2]
[352754568,1739292662975,-219.26874254,0.00016849,2]
[352754569,1739292662984,-500.0,0.00016849,2]
[352754570,1739292662994,-500.0,0.00016849,2]
[352754571,1739292663005,-562.42,0.00016849,2]
[352754572,1739292663014,-702.19,0.00016849,2]
[352754573,1739292663023,-500.0,0.00016849,2]
[352754574,1739292663034,-151.0,0.00016849,2]
[352754575,1739292663044,-151.0,0.00016849,2]
[352754576,1739292663054,-603.78,0.00016849,2]
[352754577,1739292663064,-500.0,0.00016849,2]
[352754578,1739292663074,-151.0,0.00016849,2]
[352754579,1739292663084,-500.0,0.00016849,2]
[352754580,1739292663094,-500.0,0.00016849,2]
[352754581,1739292663105,-500.0,0.00016849,2]
[352754582,1739292663115,-500.0,0.00016849,2]
[352754583,1739292663125,-500.0,0.00016849,2]
[352754584,1739292663134,-500.0,0.00016849,2]
[352754585,1739292663144,-500.0,0.00016849,2]
[352754586,1739292663153,-500.0,0.00016849,2]
[352754587,1739292663164,-521.19,0.00016849,2]
[352754588,1739292663173,-164.127336,0.00016849,2]
[352754589,1739292663184,-151.0,0.00016849,2]
[352754590,1739292663194,-164.127336,0.00016849,2]
[352754591,1739292663204,-1362.81,0.00016849,2]
[352754592,1739292663214,-500.0,0.00016849,2]
[352754593,1739292663224,-500.0,0.00016849,2]
[352754594,1739292663233,-500.0,0.00016849,2]
[352754595,1739292663243,-557.52,0.00016849,2]
[352754596,1739292663254,-1147.2,0.00016849,2]
[352754597,1739292663264,-500.0,0.00016849,2]
[352754598,1739292663274,-949.451014,0.00016849,2]
[352754599,1739292663284,-949.451014,0.00016849,2]
[352754600,1739292663293,-500.0,0.00016849,2]
[352754601,1739292663303,-500.0,0.00016849,2]
[352754602,1739292663313,-337.254953,0.00016849,2]
[352754603,1739292663325,-500.0,0.00016849,2]
[352754604,1739292663335,-337.254953,0.00016849,2]
[352754605,1739292663346,-681.22,0.00016849,2]
[352754606,1739292663356,-500.0,0.00016849,2]
[352754607,1739292663366,-500.0,0.00016849,2]
[352754608,1739292663377,-765.29,0.00016849,2]
[352754609,1739292663387,-500.0,0.00016849,2]
[352754610,1739292663398,-500.0,0.00016849,2]
[352754611,1739292663407,-500.0,0.00016849,2]
[352754612,1739292663417,-254.31636586,0.00016849,2]
[352754613,1739292663427,-500.0,0.00016849,2]
[352754614,1739292663437,-500.0,0.00016849,2]
[352754615,1739292663449,-500.0,0.00016849,2]
[352754616,1739292663459,-659.27,0.00016849,2]
[352754617,1739292663470,-500.0,0.00016849,2]
[352754618,1739292663481,-237.042097,0.00016849,2]
[352754619,1739292663492,-500.0,0.00016849,2]
[352754620,1739292663506,-280.75946055,0.00016849,2]
[352754621,1739292663516,-237.042097,0.00016849,2]
[352754622,1739292663527,-151.0,0.00016849,2]
[352754623,1739292663537,-571.46,0.00016849,2]
[352754624,1739292663547,-151.0,0.00016849,2]
[352754625,1739292663557,-500.0,0.00016849,2]
[352754626,1739292663568,-500.0,0.00016849,2]
[352754627,1739292663579,-500.0,0.00016849,2]
[352754628,1739292663590,-567.07,0.00016849,2]
[352754629,1739292663600,-500.0,0.00016849,2]
[352754630,1739292663610,-500.0,0.00016849,2]
[352754631,1739292663620,-1328.94,0.00016849,2]
[352754632,1739292663630,-702.14,0.00016849,2]
[352754633,1739292663641,-500.0,0.00016849,2]
[352754634,1739292663650,-500.0,0.00016849,2]
[352754635,1739292663660,-500.0,0.00016849,2]
[352754636,1739292663669,-500.0,0.00016849,2]
[352754637,1739292663679,-653.21,0.00016849,2]
[352754638,1739292663689,-500.0,0.00016849,2]
[352754639,1739292663699,-184.233011,0.00016849,2]
[352754640,1739292663708,-184.233011,0.00016849,2]
[352754641,1739292663718,-648.41,0.00016849,2]
[352754642,1739292663727,-500.0,0.00016849,2]
[352754643,1739292663736,-500.0,0.00016849,2]
[352754644,1739292663746,-505.62,0.00016849,2]